[Event "DSAM Bad Wildungen 2024"]
[Site "Bad Wildungen"]
[Date "2024.08.02"]
[Round "3.49"]
[White "Yilmaz, Deniz"]
[Black "Levytskyi, Oleksandr"]
[Result "1-0"]
[Annotator "NA RC"]
[ECO "D11"]
[WhiteElo "1562"]
[BlackElo "1580"]
[PlyCount "93"]
[EventDate "2024.07.31"]
[EventCountry "GER"]
[SourceTitle "playchess.com"]
[Source "ChessBase"]
[SourceQuality "1"]
[TimeControl "40/5400+30:900+30"]

1. d4 {[%emt 0:00:05]} d5 {[%emt 0:00:22]} 2. c4 {[%emt 0:00:06]} c6 {[%emt 0:00:14]} 3. Nf3 {[%emt 0:00:46]} Nf6 {[%emt 0:00:06]} 4. Bf4 {[%emt 0:00:45]} dxc4 {[%emt 0:00:29]} 5. a4 {[%emt 0:00:22]} e6 {[%emt 0:00:54]} 6. e3 {[%emt 0:00:10]} b5 {[%emt 0:00:18]} 7. axb5 {[%emt 0:00:53]} cxb5 {[%emt 0:00:14]} 8. b3 {[%emt 0:02:01]} Bb4+ {[%emt 0:07:06]} 9. Nfd2 {[%emt 0:04:12]} Qd5 {[%emt 0:05:51]} 10. Qc2 {[%emt 0:01:24]} Bb7 {[%emt 0:06:57]} 11. bxc4 {[%emt 0:01:50]} bxc4 {[%emt 0:00:16]} 12. Bxc4 {[%emt 0:00:09]} Qxg2 {[%emt 0:01:08]} 13. Bb5+ {[%emt 0:03:26]} Nc6 {[%emt 0:05:15]} 14. Rf1 {[%emt 0:03:52]} O-O {[%emt 0:00:18]} 15. f3 {[%emt 0:16:10]} Rac8 {[%emt 0:05:26]} 16. Rf2 {[%emt 0:09:55]} Qg1+ {[%emt 0:23:33]} 17. Rf1 {[%emt 0:01:32]} Nxd4 {[%emt 0:00:29]} 18. Qd1 {[%emt 0:07:25]} Nc2+ {[%emt 0:06:21]} 19. Ke2 {[%emt 0:00:27]} Qg6 {[%emt 0:11:58]} 20. Bd3 {[%emt 0:06:51]} Qxd3+ {[%emt 0:02:29]} 21. Kxd3 {[%emt 0:04:12]} Nxa1 {[%emt 0:00:09]} 22. Qa4 {[%emt 0:02:06]} Nc2 {[%emt 0:01:58]} 23. Rc1 {[%emt 0:04:44]} Rfd8+ {[%emt 0:00:35]} 24. Ke2 {[%emt 0:00:15]} Nd4+ {[%emt 0:02:33]} 25. exd4 {[%emt 0:00:27]} Rxc1 {[%emt 0:00:06]} 26. Qxb4 {[%emt 0:00:15]} Ba6+ {[%emt 0:00:59]} 27. Kf2 {[%emt 0:01:15]} Nd5 {[%emt 0:04:50]} 28. Qa5 {[%emt 0:00:18]} Ra8 {[%emt 0:00:33]} 29. Bd6 {[%emt 0:03:07]} Rc6 {[%emt 0:00:41]} 30. Bc5 {[%emt 0:00:54]} h6 {[%emt 0:00:41]} 31. Na3 {[%emt 0:03:20]} Nf4 {[%emt 0:02:04]} 32. Qa4 {[%emt 0:04:13]} Bb7 {[%emt 0:02:26]} 33. Qb5 {[%emt 0:01:08]} Rc7 {[%emt 0:00:42]} 34. Bd6 {[%emt 0:00:28]} Bc6 {[%emt 0:01:43]} 35. Qa6 {[%emt 0:02:00]} Bb7 {[%emt 0:00:33]} 36. Qb5 {[%emt 0:00:22]} Bc6 {[%emt 0:00:06]} 37. Qc4 {[%emt 0:00:10]} Nh3+ {[%emt 0:00:21]} 38. Kg3 {[%emt 0:00:13]} Rcc8 {[%emt 0:00:22]} 39. Kxh3 {[%emt 0:01:08]} Bxf3 {[%emt 0:01:09]} 40. Qa6 {[%emt 0:01:28]} Rc6 {[%emt 0:01:40]} 41. Qb7 {[%emt 0:15:07]} Rxd6 {[%emt 0:15:18]} 42. Nxf3 {[%emt 0:00:06]} Rdd8 {[%emt 0:00:21]} 43. Ne5 {[%emt 0:00:57]} Rdb8 {[%emt 0:00:41]} 44. Qxf7+ {[%emt 0:00:10]} Kh8 {[%emt 0:00:13]} 45. Qxe6 {[%emt 0:01:00]} a6 {[%emt 0:00:24]} 46. Kh4 {[%emt 0:01:08]} Rf8 {[%emt 0:00:35]} 47. Ng6+ {[%emt 0:00:15]} 1-0

[Event "DSAM Bad Wildungen 2024"]
[Site "Bad Wildungen"]
[Date "2024.08.02"]
[Round "4.1"]
[White "Voicu-Jagodzinsky, Carmen"]
[Black "Boehme, Sebastian"]
[Result "1-0"]
[Annotator "ChessBase"]
[ECO "C11"]
[WhiteElo "2227"]
[BlackElo "2232"]
[PlyCount "115"]
[EventDate "2024.07.31"]
[EventCountry "GER"]
[SourceTitle "playchess.com"]
[Source "ChessBase"]
[SourceQuality "1"]
[TimeControl "40/5400+30:900+30"]

1. e4 {[%emt 0:00:02]} e6 {[%emt 0:00:14]} 2. d4 {[%emt 0:00:43]} d5 {[%emt 0:00:08]} 3. Nc3 {[%emt 0:03:27]} Nf6 {[%emt 0:00:04]} 4. e5 {[%emt 0:00:06]} Nfd7 {[%emt 0:01:22]} 5. Nf3 {[%emt 0:00:14]} c5 {[%emt 0:00:19]} 6. dxc5 {[%emt 0:00:06]} Nc6 {[%emt 0:03:14]} 7. Bf4 {[%emt 0:00:18]} Bxc5 {[%emt 0:01:33]} 8. Bd3 {[%emt 0:00:08]} f6 {[%emt 0:05:14]} 9. exf6 {[%emt 0:04:48]} Qxf6 {[%emt 0:03:58]} 10. Bg5 {[%emt 0:04:05]} Qf7 {[%emt 0:00:09]} 11. O-O {[%emt 0:01:15]} O-O {[%emt 0:01:07]} 12. Bh4 {[%emt 0:07:10]} Qh5 {[%emt 0:05:05]} 13. Bg3 {[%emt 0:00:14]} Nf6 {[%emt 0:01:57]} 14. a3 {[%emt 0:06:30]} Bd7 {[%emt 0:08:21]} 15. b4 {[%emt 0:01:03]} Be7 {[%emt 0:03:34]} 16. Re1 {[%emt 0:01:50]} Nxb4 {[%emt 0:23:23]} 17. axb4 {[%emt 0:01:50]} Bxb4 {[%emt 0:00:05]} 18. Be5 {[%emt 0:02:22]} Rac8 {[%emt 0:02:49]} 19. Rxa7 {[%emt 0:09:28]} Bxc3 {[%emt 0:00:53]} 20. Bxc3 Rxc3 {[%emt 0:00:02]} 21. Rxb7 {[%emt 0:00:25]} Rfc8 {[%emt 0:08:21]} 22. h3 {[%emt 0:02:39]} Ba4 {[%emt 0:02:53]} 23. Qe2 {[%emt 0:12:00]} e5 {[%emt 0:12:18]} 24. Qxe5 {[%emt 0:17:59]} Qxe5 {[%emt 0:00:17]} 25. Rxe5 {[%emt 0:00:08]} R3c7 {[%emt 0:03:34]} 26. Rxc7 {[%emt 0:00:38]} Rxc7 {[%emt 0:00:01]} 27. Nd4 {[%emt 0:00:32]} Be8 {[%emt 0:06:08]} 28. g4 {[%emt 0:03:23]} h6 {[%emt 0:00:05]} 29. f4 {[%emt 0:01:02]} Bd7 {[%emt 0:01:20]} 30. g5 {[%emt 0:01:35]} Nh5 {[%emt 0:00:02]} 31. Ne2 {[%emt 0:06:33]} hxg5 {[%emt 0:01:01]} 32. fxg5 {[%emt 0:00:20]} Rc6 {[%emt 0:03:26]} 33. Rxd5 {[%emt 0:01:24]} Be6 {[%emt 0:00:31]} 34. Rd8+ {[%emt 0:08:13]} Kf7 {[%emt 0:00:01]} 35. Rh8 {[%emt 0:00:59]} g6 {[%emt 0:00:22]} 36. Rh7+ {[%emt 0:00:17]} Kg8 {[%emt 0:00:20]} 37. Bxg6 {[%emt 0:01:38]} Bc4 {[%emt 0:00:01]} 38. Rxh5 {[%emt 0:00:45]} Bxe2 {[%emt 0:00:17]} 39. Rh6 {[%emt 0:00:10]} Kg7 {[%emt 0:00:06]} 40. Bd3 {[%emt 0:00:41]} Rc5 {[%emt 0:00:00]} 41. Rg6+ {[%emt 0:17:50]} Kf7 {[%emt 0:16:07]} 42. Rf6+ {[%emt 0:00:06]} Kg7 {[%emt 0:00:25]} 43. Rf5 {[%emt 0:00:22]} Rc3 {[%emt 0:00:46]} 44. Bxe2 {[%emt 0:00:13]} Rxc2 {[%emt 0:00:01]} 45. Kf2 {[%emt 0:00:20]} Kg6 {[%emt 0:00:11]} 46. Re5 {[%emt 0:00:15]} Rc3 {[%emt 0:00:06]} 47. h4 {[%emt 0:00:20]} Ra3 {[%emt 0:00:11]} 48. h5+ {[%emt 0:00:13]} Kg7 {[%emt 0:00:02]} 49. Bf3 {[%emt 0:00:24]} Kh8 {[%emt 0:00:11]} 50. Kg3 {[%emt 0:00:11]} Rc3 {[%emt 0:00:09]} 51. h6 {[%emt 0:00:17]} Rc8 {[%emt 0:00:16]} 52. Kg4 {[%emt 0:01:07]} Rd8 {[%emt 0:00:08]} 53. g6 {[%emt 0:00:17]} Rg8 {[%emt 0:00:14]} 54. Kg5 {[%emt 0:00:24]} Rb8 {[%emt 0:00:07]} 55. g7+ {[%emt 0:00:13]} Kh7 {[%emt 0:00:08]} 56. Be4+ {[%emt 0:00:12]} Kg8 {[%emt 0:00:02]} 57. Bd5+ {[%emt 0:00:09]} Kh7 {[%emt 0:00:04]} 58. g8=Q+ {[%emt 0:00:10]} 1-0

[Event "DSAM Bad Wildungen 2024"]
[Site "Bad Wildungen"]
[Date "2024.08.02"]
[Round "4.2"]
[White "Marcziter, Dmitrii"]
[Black "Kracht, Raphael"]
[Result "1/2-1/2"]
[Annotator "ChessBase"]
[ECO "D39"]
[WhiteElo "2204"]
[BlackElo "2199"]
[PlyCount "101"]
[EventDate "2024.07.31"]
[EventCountry "GER"]
[SourceTitle "playchess.com"]
[Source "ChessBase"]
[SourceQuality "1"]
[TimeControl "40/5400+30:900+30"]

1. d4 {[%emt 0:00:04]} Nf6 {[%emt 0:10:25]} 2. c4 {[%emt 0:00:22]} e6 {[%emt 0:00:02]} 3. Nf3 {[%emt 0:00:20]} d5 {[%emt 0:00:05]} 4. Bg5 {[%emt 0:00:28]} Bb4+ {[%emt 0:00:06]} 5. Nc3 {[%emt 0:00:20]} dxc4 {[%emt 0:00:06]} 6. Qa4+ {[%emt 0:07:37]} Nc6 {[%emt 0:03:09]} 7. e3 {[%emt 0:00:23]} Bd7 {[%emt 0:05:08]} 8. Qc2 {[%emt 0:04:23]} b5 {[%emt 0:05:07]} 9. Be2 {[%emt 0:02:38]} Rb8 {[%emt 0:01:27]} 10. O-O {[%emt 0:00:30]} Bxc3 {[%emt 0:24:25]} 11. bxc3 {[%emt 0:02:45]} Ne7 {[%emt 0:00:41]} 12. Ne5 {[%emt 0:04:04]} h6 {[%emt 0:00:40]} 13. Bxf6 {[%emt 0:14:30]} gxf6 {[%emt 0:00:06]} 14. Nxd7 {[%emt 0:00:16]} Qxd7 {[%emt 0:00:17]} 15. e4 {[%emt 0:00:12]} c5 {[%emt 0:05:19]} 16. Rad1 {[%emt 0:02:15]} cxd4 {[%emt 0:02:12]} 17. cxd4 {[%emt 0:02:04]} Rb6 {[%emt 0:03:28]} 18. Bg4 {[%emt 0:05:55]} Qc7 {[%emt 0:03:12]} 19. Rfe1 {[%emt 0:04:42]} Rg8 {[%emt 0:01:45]} 20. Bh3 {[%emt 0:05:44]} Ng6 {[%emt 0:05:16]} 21. g3 {[%emt 0:02:57]} Kf8 {[%emt 0:06:47]} 22. Bg2 {[%emt 0:04:08]} Rd6 {[%emt 0:04:41]} 23. Qc3 {[%emt 0:04:03]} Kg7 {[%emt 0:03:23]} 24. f4 {[%emt 0:03:42]} e5 {[%emt 0:07:19]} 25. fxe5 {[%emt 0:05:41]} fxe5 {[%emt 0:00:11]} 26. d5 {[%emt 0:00:23]} Qc5+ {[%emt 0:00:27]} 27. Kh1 {[%emt 0:00:12]} b4 {[%emt 0:00:29]} 28. Qf3 {[%emt 0:00:17]} Rf6 {[%emt 0:00:16]} 29. Qg4 {[%emt 0:00:17]} c3 {[%emt 0:02:04]} 30. h4 {[%emt 0:03:58]} Kh7 {[%emt 0:01:48]} 31. h5 {[%emt 0:02:47]} Nf8 {[%emt 0:02:13]} 32. Qh4 {[%emt 0:00:54]} Rg5 {[%emt 0:00:11]} 33. Bh3 {[%emt 0:00:54]} c2 {[%emt 0:00:58]} 34. Rc1 {[%emt 0:00:21]} Rf2 {[%emt 0:00:36]} 35. Bf5+ {[%emt 0:00:38]} Kg7 {[%emt 0:00:15]} 36. g4 {[%emt 0:00:22]} Qd4 {[%emt 0:01:09]} 37. Qg3 {[%emt 0:02:09]} Qd2 {[%emt 0:01:16]} 38. Qxe5+ {[%emt 0:02:17]} Kg8 {[%emt 0:00:06]} 39. Qg3 {[%emt 0:01:03]} Nh7 {[%emt 0:01:57]} 40. d6 {[%emt 0:03:41]} Nf6 {[%emt 0:00:52]} 41. d7 {[%emt 0:15:38]} Rfxf5 {[%emt 0:03:51]} 42. Rxc2 {[%emt 0:00:00]} Qxd7 {[%emt 0:00:49]} 43. exf5 {[%emt 0:00:00]} Rxg4 {[%emt 0:00:38]} 44. Qf3 {[%emt 0:00:00]} Kh7 {[%emt 0:02:51]} 45. Rg1 {[%emt 0:00:00]} Rh4+ {[%emt 0:04:10]} 46. Rh2 {[%emt 0:00:00]} Rd4 {[%emt 0:00:46]} 47. Rh3 {[%emt 0:02:03]} a5 {[%emt 0:01:54]} 48. Rhg3 {[%emt 0:02:35]} Rh4+ {[%emt 0:00:12]} 49. Rh3 {[%emt 0:00:09]} Rd4 {[%emt 0:00:26]} 50. Rhg3 {[%emt 0:00:06]} Rh4+ {[%emt 0:00:09]} 51. Rh3 {[%emt 0:00:04]} 1/2-1/2

[Event "DSAM Bad Wildungen 2024"]
[Site "Bad Wildungen"]
[Date "2024.08.02"]
[Round "4.3"]
[White "Zimmermann, Klemens"]
[Black "Dathe, Frederick"]
[Result "1/2-1/2"]
[Annotator "ChessBase"]
[ECO "D27"]
[WhiteElo "2198"]
[BlackElo "2247"]
[PlyCount "54"]
[EventDate "2024.07.31"]
[EventCountry "GER"]
[SourceTitle "playchess.com"]
[Source "ChessBase"]
[SourceQuality "1"]
[TimeControl "40/5400+30:900+30"]

1. d4 {[%emt 0:00:02]} d5 {[%emt 0:00:38]} 2. c4 {[%emt 0:00:05]} dxc4 {[%emt 0:00:33]} 3. e3 {[%emt 0:04:13]} Nf6 {[%emt 0:00:39]} 4. Bxc4 {[%emt 0:00:03]} e6 {[%emt 0:00:37]} 5. Nf3 {[%emt 0:03:09]} c5 {[%emt 0:00:55]} 6. O-O {[%emt 0:01:29]} a6 {[%emt 0:01:18]} 7. b3 {[%emt 0:02:26]} cxd4 {[%emt 0:04:14]} 8. Nxd4 {[%emt 0:01:04]} Bd7 {[%emt 0:02:05]} 9. Bb2 {[%emt 0:00:20]} Nc6 {[%emt 0:02:47]} 10. Nd2 {[%emt 0:02:11]} Be7 {[%emt 0:05:04]} 11. N2f3 {[%emt 0:00:17]} O-O {[%emt 0:07:00]} 12. Rc1 {[%emt 0:00:55]} Rc8 {[%emt 0:04:04]} 13. Qe2 {[%emt 0:04:27]} Qa5 {[%emt 0:08:21]} 14. a3 {[%emt 0:08:47]} Rfd8 {[%emt 0:13:44]} 15. b4 {[%emt 0:03:43]} Qh5 {[%emt 0:02:12]} 16. Rfd1 {[%emt 0:07:40]} Nxd4 {[%emt 0:09:33]} 17. Bxd4 {[%emt 0:18:28]} Ba4 {[%emt 0:07:50]} 18. Re1 {[%emt 0:01:18]} b5 {[%emt 0:02:28]} 19. Bd3 {[%emt 0:01:56]} Qd5 {[%emt 0:01:49]} 20. Qb2 {[%emt 0:03:41]} h6 {[%emt 0:05:17]} 21. Rxc8 {[%emt 0:03:45]} Rxc8 {[%emt 0:00:07]} 22. Rc1 {[%emt 0:00:04]} Rd8 {[%emt 0:03:11]} 23. Qc3 {[%emt 0:02:47]} Qb3 {[%emt 0:05:19]} 24. Ne5 {[%emt 0:06:46]} Qxc3 {[%emt 0:02:45]} 25. Rxc3 {[%emt 0:00:14]} Nd5 {[%emt 0:00:59]} 26. Nc6 {[%emt 0:02:54]} Nxc3 {[%emt 0:01:45]} 27. Nxd8 {[%emt 0:00:07]} Bxd8 {[%emt 0:00:38]} 1/2-1/2

[Event "DSAM Bad Wildungen 2024"]
[Site "Bad Wildungen"]
[Date "2024.08.02"]
[Round "4.4"]
[White "Huesmann, Thomas"]
[Black "Kocharin, Timur"]
[Result "1/2-1/2"]
[Annotator "ChessBase"]
[ECO "B11"]
[WhiteElo "2165"]
[BlackElo "2297"]
[PlyCount "104"]
[EventDate "2024.07.31"]
[EventCountry "GER"]
[SourceTitle "playchess.com"]
[Source "ChessBase"]
[SourceQuality "1"]
[TimeControl "40/5400+30:900+30"]

1. e4 {[%emt 0:00:03]} c6 {[%emt 0:00:46]} 2. Nf3 {[%emt 0:00:23]} d5 {[%emt 0:00:15]} 3. Nc3 {[%emt 0:00:12]} Bg4 {[%emt 0:00:58]} 4. h3 {[%emt 0:00:22]} Bxf3 {[%emt 0:00:15]} 5. Qxf3 {[%emt 0:00:09]} e6 {[%emt 0:00:05]} 6. d3 {[%emt 0:00:28]} Nd7 {[%emt 0:00:11]} 7. Qg3 {[%emt 0:01:02]} h5 {[%emt 0:02:35]} 8. h4 {[%emt 0:04:58]} g6 {[%emt 0:02:21]} 9. Be2 {[%emt 0:00:28]} Bg7 {[%emt 0:04:54]} 10. O-O {[%emt 0:01:56]} Bf6 {[%emt 0:01:25]} 11. Bg5 {[%emt 0:00:21]} Bxg5 {[%emt 0:00:56]} 12. Qxg5 {[%emt 0:01:22]} Qxg5 {[%emt 1:21:49]} 13. hxg5 {[%emt 0:01:24]} d4 {[%emt 0:00:00]} 14. Nb1 {[%emt 0:00:58]} e5 {[%emt 0:00:00]} 15. Nd2 {[%emt 0:00:43]} f6 {[%emt 0:00:00]} 16. gxf6 {[%emt 0:01:51]} Ngxf6 {[%emt 0:00:00]} 17. f4 {[%emt 0:00:10]} exf4 {[%emt 0:00:00]} 18. Rxf4 {[%emt 0:00:14]} Ke7 {[%emt 0:00:00]} 19. c3 {[%emt 0:12:23]} c5 {[%emt 0:00:00]} 20. cxd4 {[%emt 0:02:14]} cxd4 {[%emt 0:00:00]} 21. Raf1 {[%emt 0:05:07]} Rhf8 {[%emt 0:00:00]} 22. Nf3 {[%emt 0:04:30]} Rad8 {[%emt 0:00:00]} 23. Nxd4 {[%emt 0:05:11]} Ne5 {[%emt 0:00:00]} 24. Nf3 {[%emt 0:02:23]} Nxd3 {[%emt 0:00:00]} 25. Bxd3 {[%emt 0:00:24]} Rxd3 {[%emt 0:00:00]} 26. Ne5 {[%emt 0:00:19]} Rg3 {[%emt 0:00:00]} 27. Nc4 {[%emt 0:11:21]} Nd7 {[%emt 0:00:00]} 28. Rxf8 {[%emt 0:04:38]} Nxf8 {[%emt 0:00:00]} 29. Ne5 {[%emt 0:00:36]} Rg5 {[%emt 0:00:00]} 30. Nd3 {[%emt 0:03:30]} Ne6 {[%emt 0:00:00]} 31. Rc1 {[%emt 0:04:26]} Rg4 {[%emt 0:00:00]} 32. e5 {[%emt 0:08:23]} Rg3 {[%emt 0:00:00]} 33. Rd1 {[%emt 0:03:08]} h4 {[%emt 0:00:00]} 34. Kf2 {[%emt 0:01:36]} Ng5 {[%emt 0:00:00]} 35. Ne1 {[%emt 0:04:01]} Ne4+ {[%emt 0:00:00]} 36. Kf1 {[%emt 0:00:43]} Ke6 {[%emt 0:00:00]} 37. Rd8 {[%emt 0:03:11]} Kxe5 {[%emt 0:00:00]} 38. Nf3+ {[%emt 0:00:33]} Kf4 {[%emt 0:00:00]} 39. Nxh4 {[%emt 0:03:02]} Rg5 {[%emt 0:00:00]} 40. Rg8 {[%emt 0:06:03]} Ke3 {[%emt 0:00:00]} 41. Rxg6 {[%emt 0:20:02]} Rc5 {[%emt 0:09:14]} 42. Kg1 {[%emt 0:01:04]} Rc1+ {[%emt 0:00:47]} 43. Kh2 {[%emt 0:00:12]} Rc2 {[%emt 0:00:03]} 44. Nf5+ {[%emt 0:00:00]} Kf4 {[%emt 0:00:00]} 45. Ng3 {[%emt 0:00:00]} Ng5 {[%emt 0:00:00]} 46. Rf6+ {[%emt 0:00:00]} Kg4 {[%emt 0:00:00]} 47. Rg6 {[%emt 0:00:00]} Kf4 {[%emt 0:00:00]} 48. Rf6+ {[%emt 0:00:00]} Kg4 {[%emt 0:00:00]} 49. Rg6 {[%emt 0:00:00]} Rxb2 {[%emt 0:00:00]} 50. Ne4 {[%emt 0:00:00]} Kf5 {[%emt 0:00:00]} 51. Rxg5+ {[%emt 0:00:00]} Kxe4 {[%emt 0:00:00]} 52. Ra5 {[%emt 0:00:00]} a6 {[%emt 0:00:00]} 1/2-1/2

[Event "DSAM Bad Wildungen 2024"]
[Site "Bad Wildungen"]
[Date "2024.08.02"]
[Round "4.5"]
[White "Kocak, Ediz"]
[Black "Gassmann, Volker"]
[Result "1-0"]
[Annotator "ChessBase"]
[ECO "D02"]
[WhiteElo "2166"]
[BlackElo "2077"]
[PlyCount "61"]
[EventDate "2024.07.31"]
[EventCountry "GER"]
[SourceTitle "playchess.com"]
[Source "ChessBase"]
[SourceQuality "1"]
[TimeControl "40/5400+30:900+30"]

1. d4 {[%emt 0:12:26]} c5 {[%emt 0:01:41]} 2. c3 {[%emt 0:00:07]} e6 {[%emt 0:00:48]} 3. Nf3 {[%emt 0:00:10]} Nf6 {[%emt 0:00:40]} 4. Bf4 {[%emt 0:00:41]} b6 {[%emt 0:01:25]} 5. h3 {[%emt 0:00:30]} Bb7 {[%emt 0:01:11]} 6. e3 {[%emt 0:00:07]} Be7 {[%emt 0:01:17]} 7. Nbd2 {[%emt 0:00:09]} O-O {[%emt 0:02:47]} 8. Bd3 {[%emt 0:00:12]} d5 {[%emt 0:02:23]} 9. Qb1 {[%emt 0:06:13]} Re8 {[%emt 0:03:05]} 10. g4 {[%emt 0:03:38]} cxd4 {[%emt 0:03:24]} 11. exd4 {[%emt 0:00:31]} g6 {[%emt 0:04:26]} 12. Rg1 {[%emt 0:07:10]} Nbd7 {[%emt 0:03:16]} 13. h4 {[%emt 0:00:45]} Ne4 {[%emt 0:13:36]} 14. Nxe4 {[%emt 0:01:24]} dxe4 {[%emt 0:01:26]} 15. Bxe4 {[%emt 0:02:31]} Bxe4 {[%emt 0:00:05]} 16. Qxe4 {[%emt 0:00:07]} Nf6 {[%emt 0:00:03]} 17. Qe2 {[%emt 0:02:47]} Qd5 {[%emt 0:00:28]} 18. Nd2 {[%emt 0:13:42]} Rac8 {[%emt 0:01:37]} 19. Qf3 {[%emt 0:00:40]} Qxf3 {[%emt 0:14:08]} 20. Nxf3 {[%emt 0:00:04]} b5 {[%emt 0:00:57]} 21. Rc1 {[%emt 0:13:42]} h5 {[%emt 0:03:53]} 22. g5 {[%emt 0:01:00]} Nd5 {[%emt 0:00:03]} 23. Be5 {[%emt 0:02:05]} Nb6 {[%emt 0:00:22]} 24. Ke2 {[%emt 0:04:24]} b4 {[%emt 0:06:11]} 25. cxb4 {[%emt 0:07:54]} Bxb4 {[%emt 0:04:10]} 26. a3 {[%emt 0:00:17]} Be7 {[%emt 0:00:14]} 27. Nd2 {[%emt 0:01:06]} a5 {[%emt 0:03:24]} 28. Kd3 {[%emt 0:04:21]} Na4 {[%emt 0:03:58]} 29. Nc4 {[%emt 0:02:11]} Red8 {[%emt 0:00:25]} 30. Ke4 {[%emt 0:06:06]} Rc6 {[%emt 0:08:52]} 31. Nxa5 {[%emt 0:01:24]} 1-0

[Event "DSAM Bad Wildungen 2024"]
[Site "Bad Wildungen"]
[Date "2024.08.02"]
[Round "4.6"]
[White "Diller, Daniel"]
[Black "Sydykov, Bayastan"]
[Result "1/2-1/2"]
[Annotator "ChessBase"]
[ECO "D02"]
[WhiteElo "2140"]
[BlackElo "2246"]
[PlyCount "113"]
[EventDate "2024.07.31"]
[EventCountry "GER"]
[SourceTitle "playchess.com"]
[Source "ChessBase"]
[SourceQuality "1"]
[TimeControl "40/5400+30:900+30"]

1. d4 {[%emt 0:04:30]} d5 {[%emt 0:00:19]} 2. Nf3 {[%emt 0:00:25]} Nf6 {[%emt 0:00:06]} 3. Bf4 {[%emt 0:00:08]} c5 {[%emt 0:00:33]} 4. e3 {[%emt 0:00:10]} e6 {[%emt 0:00:12]} 5. Nbd2 {[%emt 0:00:08]} Qb6 {[%emt 0:00:32]} 6. Rb1 {[%emt 0:03:49]} Bd6 {[%emt 0:00:18]} 7. Bxd6 {[%emt 0:15:34]} Qxd6 {[%emt 0:00:02]} 8. dxc5 {[%emt 0:02:28]} Qxc5 {[%emt 0:00:02]} 9. c4 {[%emt 0:00:21]} O-O {[%emt 0:00:38]} 10. cxd5 {[%emt 0:15:46]} Qxd5 {[%emt 0:00:06]} 11. Nc4 {[%emt 0:02:39]} Nc6 {[%emt 0:09:47]} 12. Be2 {[%emt 0:09:33]} Rd8 {[%emt 0:07:55]} 13. Qxd5 {[%emt 0:03:09]} exd5 {[%emt 0:00:40]} 14. Nce5 {[%emt 0:01:55]} Nxe5 {[%emt 0:25:04]} 15. Nxe5 {[%emt 0:00:34]} Bf5 {[%emt 0:01:03]} 16. Rc1 {[%emt 0:02:27]} d4 {[%emt 0:18:53]} 17. Bc4 {[%emt 0:16:03]} Bg6 {[%emt 0:00:56]} 18. Nxg6 {[%emt 0:03:15]} hxg6 {[%emt 0:00:09]} 19. Ke2 {[%emt 0:07:17]} Re8 {[%emt 0:01:08]} 20. Rhd1 {[%emt 0:05:40]} dxe3 {[%emt 0:00:15]} 21. fxe3 {[%emt 0:00:05]} Rad8 {[%emt 0:03:54]} 22. Rxd8 {[%emt 0:01:21]} Rxd8 {[%emt 0:00:01]} 23. Bb3 {[%emt 0:00:13]} Ne8 {[%emt 0:09:36]} 24. Rc5 {[%emt 0:01:43]} Kf8 {[%emt 0:01:47]} 25. Ra5 {[%emt 0:00:52]} a6 {[%emt 0:00:40]} 26. Rd5 {[%emt 0:01:16]} Rxd5 {[%emt 0:04:26]} 27. Bxd5 {[%emt 0:00:01]} b6 {[%emt 0:00:07]} 28. Kd3 {[%emt 0:00:25]} Nc7 {[%emt 0:01:04]} 29. Bb7 {[%emt 0:01:01]} Ke7 {[%emt 0:01:32]} 30. b4 {[%emt 0:00:31]} Kd6 {[%emt 0:01:09]} 31. Kc4 {[%emt 0:00:37]} g5 {[%emt 0:02:21]} 32. a4 {[%emt 0:00:52]} b5+ {[%emt 0:02:09]} 33. axb5 {[%emt 0:00:05]} axb5+ {[%emt 0:00:05]} 34. Kd4 {[%emt 0:00:17]} Ne6+ {[%emt 0:02:20]} 35. Ke4 {[%emt 0:00:39]} g6 {[%emt 0:00:54]} 36. g4 {[%emt 0:00:40]} Nc7 {[%emt 0:01:26]} 37. Kd4 {[%emt 0:00:31]} f5 {[%emt 0:03:42]} 38. gxf5 {[%emt 0:00:25]} gxf5 {[%emt 0:00:01]} 39. Bc8 {[%emt 0:01:25]} Ne6+ {[%emt 0:00:58]} 40. Kd3 {[%emt 0:00:51]} Ke5 {[%emt 0:00:34]} 41. Bd7 {[%emt 0:04:23]} Nc7 {[%emt 0:00:10]} 42. Ke2 {[%emt 0:05:47]} Nd5 {[%emt 0:07:57]} 43. Kf3 {[%emt 0:01:30]} Nxb4 {[%emt 0:02:36]} 44. Bxb5 {[%emt 0:00:32]} Nd5 {[%emt 0:08:48]} 45. Bc6 {[%emt 0:01:38]} Nf6 {[%emt 0:00:26]} 46. h3 {[%emt 0:00:56]} Ng8 {[%emt 0:00:37]} 47. Bb7 {[%emt 0:00:48]} Nf6 {[%emt 0:00:28]} 48. Bc6 {[%emt 0:00:11]} Ke6 {[%emt 0:00:32]} 49. Bb7 {[%emt 0:00:19]} Kf7 {[%emt 0:00:28]} 50. e4 {[%emt 0:01:48]} fxe4+ {[%emt 0:00:30]} 51. Bxe4 {[%emt 0:00:02]} Nxe4 {[%emt 0:00:25]} 52. Kxe4 {[%emt 0:00:02]} Kg6 {[%emt 0:00:26]} 53. Kf3 {[%emt 0:00:52]} Kf5 {[%emt 0:00:09]} 54. Kg3 {[%emt 0:00:07]} Kg6 {[%emt 0:00:06]} 55. Kg4 {[%emt 0:00:06]} Kh6 {[%emt 0:00:16]} 56. h4 {[%emt 0:00:05]} gxh4 {[%emt 0:00:05]} 57. Kxh4 {[%emt 0:00:04]} 1/2-1/2

[Event "DSAM Bad Wildungen 2024"]
[Site "Bad Wildungen"]
[Date "2024.08.02"]
[Round "4.7"]
[White "Rolle, Eric"]
[Black "Dauth, Benjamin"]
[Result "1/2-1/2"]
[Annotator "ChessBase"]
[ECO "A28"]
[WhiteElo "2167"]
[BlackElo "2247"]
[PlyCount "33"]
[EventDate "2024.07.31"]
[EventCountry "GER"]
[SourceTitle "playchess.com"]
[Source "ChessBase"]
[SourceQuality "1"]
[TimeControl "40/5400+30:900+30"]

1. c4 {[%emt 0:00:07]} e5 {[%emt 0:01:35]} 2. Nc3 {[%emt 0:00:11]} Nc6 {[%emt 0:00:09]} 3. Nf3 {[%emt 0:01:32]} Nf6 {[%emt 0:00:23]} 4. e3 {[%emt 0:00:12]} Be7 {[%emt 0:00:40]} 5. a3 {[%emt 0:00:35]} O-O {[%emt 0:00:08]} 6. Qc2 {[%emt 0:00:21]} a6 {[%emt 0:00:57]} 7. Nd5 {[%emt 0:01:13]} d6 {[%emt 0:00:26]} 8. Be2 {[%emt 0:05:00]} Be6 {[%emt 0:01:26]} 9. Nxe7+ {[%emt 0:00:41]} Qxe7 {[%emt 0:00:50]} 10. d3 {[%emt 0:01:22]} d5 {[%emt 0:00:47]} 11. cxd5 {[%emt 0:00:35]} Bxd5 {[%emt 0:00:10]} 12. e4 {[%emt 0:01:25]} Be6 {[%emt 0:00:18]} 13. Be3 {[%emt 0:01:15]} Rfd8 {[%emt 0:00:07]} 14. Qc3 {[%emt 0:01:23]} Bg4 {[%emt 0:00:41]} 15. O-O {[%emt 0:02:12]} Bxf3 {[%emt 0:00:22]} 16. Bxf3 {[%emt 0:00:07]} Nd4 {[%emt 0:00:06]} 17. Bxd4 {[%emt 0:01:24]} 1/2-1/2